fUSD/lending_fUSD_20250618
["ID","MTS","AMOUNT","RATE_DAILY","PERIOD"]
[366464758,1750269041035,-1000.0,0.00019887,2]
[366464760,1750269041045,-500.0,0.0001989,2]
[366464762,1750269041055,-1885.44413402,0.00019892,2]
[366464764,1750269041064,-150.0,0.00019895,2]
[366464766,1750269041074,-1983.34031034,0.00019896,2]
[366464768,1750269041083,-313.8477378,0.00019896,2]
[366464770,1750269041092,-150.0,0.00019898,2]
[366464772,1750269041102,-174.78467982,0.00019899,2]
[366464774,1750269041111,-261.43896171,0.00019899,2]
[366464776,1750269041121,-500.0,0.00019899,2]
[366464778,1750269041131,-162.98880696,0.000199,2]
[366464780,1750269041142,-79582.02267222,0.000199,2]
[366464830,1750269041604,-470.493024,0.000199,2]
[366464850,1750269041787,-38478.92610303,0.000199,2]
[366464854,1750269041815,-10402.99999999,0.000199,2]
[366464867,1750269041927,-2802.23339687,0.000199,2]
[366464920,1750269043294,-505.03,0.00017004,2]
[366464921,1750269043305,-150.0,0.00019681,2]
[366464922,1750269043315,-150.0,0.00019684,2]
[366464923,1750269043324,-150.0,0.00019698,2]
[366464924,1750269043334,-150.0,0.00019707,2]
[366464925,1750269043343,-150.0,0.00019707,2]
[366464926,1750269043352,-150.0,0.00019708,2]
[366464927,1750269043362,-150.0,0.00019709,2]
[366464928,1750269043371,-150.0,0.00019711,2]
[366464929,1750269043381,-150.0,0.00019721,2]
[366464930,1750269043393,-150.0,0.00019727,2]
[366464931,1750269043402,-150.0,0.00019734,2]
[366464932,1750269043412,-150.0,0.00019734,2]
[366464933,1750269043421,-150.0,0.00019736,2]
[366464934,1750269043431,-150.0,0.00019737,2]
[366464935,1750269043440,-150.0,0.00019738,2]
[366464936,1750269043449,-24.52119531,0.00019739,2]
[366464937,1750269043461,-125.47880469,0.00019739,2]
[366464938,1750269043472,-150.0,0.0001974,2]
[366464939,1750269043482,-150.0,0.00019752,2]
[366464940,1750269043491,-150.0,0.00019753,2]
[366464941,1750269043501,-150.0,0.00019767,2]
[366464942,1750269043510,-150.0,0.0001977,2]
[366464943,1750269043520,-150.0,0.0001977,2]
[366464944,1750269043529,-150.0,0.00019784,2]
[366464945,1750269043539,-150.0,0.00019784,2]
[366464946,1750269043548,-150.0,0.00019785,2]
[366464947,1750269043558,-150.0,0.00019793,2]
[366464948,1750269043568,-137.72129531,0.00019793,2]
[366464949,1750269043608,-150.0,0.00019697,2]
[366464950,1750269043618,-12.27870469,0.00019793,2]
[366464951,1750269043627,-149.72129531,0.00019794,2]
[366464952,1750269043649,-150.0,0.00019752,2]
[366464953,1750269043659,-150.0,0.00019774,2]
[366464954,1750269043668,-0.27870469,0.00019794,2]
[366464955,1750269043678,-150.0,0.000198,2]
[366464956,1750269043688,-150.0,0.00019801,2]
[366464957,1750269043698,-150.0,0.00019807,2]
[366464958,1750269043707,-150.0,0.00019807,2]
[366464959,1750269043716,-150.0,0.00019813,2]
[366464960,1750269043726,-150.0,0.00019818,2]
[366464961,1750269043736,-150.0,0.00019819,2]
[366464962,1750269043745,-150.0,0.00019823,2]
[366464963,1750269043755,-150.0,0.00019831,2]
[366464964,1750269043764,-150.0,0.00019833,2]
[366464965,1750269043774,-150.0,0.00019835,2]
[366464966,1750269043783,-150.0,0.00019837,2]
[366464967,1750269043793,-150.0,0.00019842,2]
[366464968,1750269043802,-150.0,0.00019845,2]
[366464969,1750269043811,-150.0,0.00019847,2]
[366464970,1750269043821,-150.0,0.00019847,2]
[366464971,1750269043830,-150.0,0.00019852,2]
[366464972,1750269043840,-150.0,0.00019854,2]
[366464973,1750269043849,-150.0,0.00019858,2]
[366464974,1750269043858,-150.0,0.00019862,2]
[366464975,1750269043867,-150.0,0.00019862,2]
[366464976,1750269043877,-150.0,0.00019868,2]
[366464977,1750269043886,-150.0,0.00019881,2]
[366464978,1750269043897,-150.0,0.00019886,2]
[366464979,1750269043907,-150.0,0.00019887,2]
[366464980,1750269043916,-150.0,0.00019888,2]
[366464981,1750269043925,-150.0,0.00019891,2]
[366464982,1750269043935,-150.0,0.00019896,2]
[366464983,1750269043944,-150.0,0.00019897,2]
[366464984,1750269043953,-5778.05729531,0.000199,2]
[366464985,1750269044154,276.86,0.0001524,2]
[366464986,1750269045430,206.4,0.00013699,2]
[366464987,1750269045476,-500.0,0.00016999,2]
[366464988,1750269045486,-500.0,0.00016999,2]
[366464989,1750269045496,-500.0,0.00016999,2]
[366464990,1750269045506,-500.0,0.00016999,2]
[366464991,1750269045516,-425.42741465,0.00016999,2]
[366464992,1750269045528,-500.0,0.00016999,2]
[366464993,1750269045538,-500.0,0.00016999,2]
[366464994,1750269045548,-500.0,0.00016999,2]
[366464995,1750269045558,-500.0,0.00016999,2]
[366464996,1750269045568,-500.0,0.00016999,2]
[366464997,1750269045578,-500.0,0.00016999,2]
[366464998,1750269045596,-500.0,0.00016999,2]
[366464999,1750269045606,-150.0,0.00019772,2]
[366465000,1750269045616,-155.38901452,0.000198,2]
[366465001,1750269045626,-150.0,0.00019829,2]
[366465002,1750269045636,-150.0,0.0001988,2]
[366465003,1750269045647,-7901.47107648,0.000199,2]
[366465004,1750269045659,-391.61999934,0.000199,2]
[366465005,1750269045671,-3129.6,0.000199,2]
[366465006,1750269045699,-687.61352532,0.000199,2]
[366465007,1750269045732,-24905.0000001,0.000199,2]
[366465008,1750269045743,-5399.5,0.000199,2]
[366465020,1750269590268,160.33,0.0001524,2]
[366465023,1750269726689,666.0,0.0001524,2]
[366465026,1750269748462,200.0,0.0001524,7]
[366465029,1750269811622,1000.0,0.0001524,2]
[366465031,1750269852750,201.0,0.00015187,2]
[366465044,1750269963440,5563.0,0.00016,5]
[366465061,1750270032294,201.0,0.00015187,2]
[366465063,1750270091967,200.0,0.00015187,2]
[366465064,1750270131315,2000.0,0.0001524,2]
[366465065,1750270133396,173.86162,0.00015947,2]
[366465080,1750270203738,196.08,0.00013699,2]
[366465081,1750270211729,201.0,0.00015121,2]
[366465082,1750270230166,1666.91,0.0001524,2]
[366465094,1750270231554,-201.0,0.00016056,3]
[366465096,1750270231566,-300.0,0.00016107,2]
[366465097,1750270231576,-1200.0,0.00016107,2]
[366465098,1750270231585,-78.76494179,0.00016108,2]
[366465117,1750270231766,-222.94505821,0.00016108,2]
[366465119,1750270231777,-305.17,0.00016108,2]
[366465121,1750270231788,-302.16,0.00016108,2]
[366465123,1750270231798,-305.74,0.00016108,2]
[366465125,1750270231809,-302.98,0.00016108,2]
[366465127,1750270231820,-304.41,0.00016108,2]
[366465129,1750270231831,-301.04,0.00016108,2]
[366465131,1750270231841,-305.75,0.00016108,2]
[366465132,1750270231852,-494.57,0.00016108,2]
[366465133,1750270231862,-495.6,0.00016108,2]
[366465134,1750270231872,-303.01,0.00016108,2]
[366465135,1750270231889,-506.29,0.00016119,2]
[366465136,1750270231899,-494.06,0.00016119,2]
[366465137,1750270231909,-304.33,0.00016119,2]
[366465138,1750270231919,-498.8,0.00016119,2]
[366465139,1750270231929,-301.08,0.00016119,2]
[366465141,1750270231939,-502.78,0.00016119,2]
[366465143,1750270231949,-304.04,0.00016125,2]
[366465145,1750270231958,-503.97,0.00016125,2]
[366465146,1750270231969,-493.77,0.00016125,2]
[366465147,1750270231979,-302.48,0.00016125,2]
[366465148,1750270231989,-218.42802748,0.00016137,2]
[366465149,1750270232002,-282.24197252,0.00016137,2]
[366465150,1750270232012,-302.57,0.00016137,2]
[366465151,1750270232022,-260.28573669,0.00016137,2]
[366465152,1750270232051,-236.94426331,0.00016137,2]
[366465153,1750270232062,-491.62,0.00016152,2]
[366465154,1750270232072,-302.97,0.00016154,2]
[366465155,1750270232082,-496.06,0.00016154,2]
[366465156,1750270232092,-300.0,0.00016173,2]
[366465157,1750270232102,-491.57,0.00016174,2]
[366465158,1750270232111,-504.31,0.00016174,2]
[366465159,1750270232121,-497.56,0.00016174,2]
[366465160,1750270232137,-499.33,0.00016174,2]
[366465162,1750270232148,-500.84,0.00016174,2]
[366465164,1750270232158,-501.97,0.00016174,2]
[366465166,1750270232168,-301.07,0.00016174,2]
[366465167,1750270232178,-499.75,0.00016174,2]
[366465168,1750270232188,-502.42,0.00016174,2]
[366465169,1750270232198,-305.51,0.00016174,2]
[366465171,1750270232209,-505.87,0.00016174,2]
[366465173,1750270232218,-303.56,0.00016174,2]
[366465175,1750270232228,-506.26,0.00016174,2]
[366465177,1750270232237,-500.16,0.00016174,2]
[366465179,1750270232246,-305.01,0.00016174,2]
[366465180,1750270232256,-493.01,0.00016174,2]
[366465181,1750270232266,-305.33,0.00016187,2]
[366465182,1750270232277,-300.04,0.00016187,2]
[366465183,1750270232286,-491.86,0.00016188,2]
[366465184,1750270232296,-301.98,0.00016188,2]
[366465185,1750270232306,-304.84,0.00016189,2]
[366465186,1750270232316,-499.73,0.00016192,2]
[366465187,1750270232326,-500.14,0.00016192,2]
[366465188,1750270232336,-305.63,0.00016195,2]
[366465189,1750270232346,-503.04,0.00016211,2]
[366465190,1750270232356,-303.01,0.00016227,2]
[366465191,1750270232366,-503.37,0.00016307,2]
[366465192,1750270232376,-508.09,0.00016307,2]
[366465193,1750270232389,-304.25,0.00016386,2]
[366465194,1750270232399,-495.49,0.00016611,2]
[366465195,1750270232410,-509.51,0.00016611,2]
[366465196,1750270232420,-494.69,0.00016783,2]
[366465197,1750270232430,-509.06,0.00016783,2]
[366465198,1750270232441,-150.0,0.00016783,2]
[366465199,1750270232451,-150.0,0.0001681,2]
[366465200,1750270232460,-206.17533536,0.00016838,2]
[366465201,1750270232470,-1020.12674323,0.000169,2]
[366465202,1750270232480,-497.66,0.000169,2]
[366465203,1750270232490,-500.89,0.000169,2]
[366465204,1750270232500,-302.75,0.000169,2]
[366465205,1750270232510,-804.28541859,0.00016985,2]
[366465206,1750270232520,-201.0,0.00016991,4]
[366465207,1750270232529,-496.78,0.00016992,2]
[366465208,1750270232539,-503.44,0.00016992,2]
[366465209,1750270232548,-280.86797459,0.00016992,2]
[366465210,1750270232568,-24.68202541,0.00016992,2]
[366465211,1750270232584,-495.59,0.00016992,2]
[366465212,1750270232594,-496.06,0.00016992,2]
[366465213,1750270232603,-305.8,0.00016992,2]
[366465214,1750270232614,-495.3,0.00016992,2]
[366465215,1750270232623,-490.76,0.00016992,2]
[366465216,1750270232639,-300.45,0.00016992,2]
[366465217,1750270232648,-495.92,0.00016992,2]
[366465218,1750270232658,-302.54,0.00016992,2]
[366465219,1750270232668,-493.54,0.00016992,2]
[366465220,1750270232678,-495.85,0.00016992,2]
[366465221,1750270232688,-300.7,0.00016992,2]
[366465222,1750270232698,-494.64,0.00016992,2]
[366465223,1750270232708,-504.34,0.00016992,2]
[366465224,1750270232718,-303.67,0.00016992,2]
[366465225,1750270232728,-495.11,0.00016992,2]
[366465226,1750270232739,-503.76,0.00016992,2]
[366465227,1750270232749,-304.56,0.00016992,2]
[366465228,1750270232759,-496.48,0.00016994,2]
[366465229,1750270232769,-301.83,0.00016994,2]
[366465230,1750270232779,-498.28,0.00016994,2]
[366465231,1750270232790,-503.96,0.00016994,2]
[366465232,1750270232800,-302.76,0.00016994,2]
[366465233,1750270232810,-493.97,0.00016994,2]
[366465234,1750270232820,-494.01,0.00016994,2]
[366465235,1750270232829,-305.34,0.00016994,2]
[366465236,1750270232840,-505.93,0.00016994,2]
[366465237,1750270232850,-496.63,0.00016994,2]
[366465238,1750270232860,-303.89,0.00016994,2]
[366465239,1750270232871,-300.68,0.00016995,2]
[366465240,1750270232883,-493.86,0.00016995,2]
[366465241,1750270232893,-498.94,0.00016995,2]
[366465242,1750270232903,-304.91,0.00016995,2]
[366465243,1750270232913,-500.08,0.00016995,2]
[366465244,1750270232923,-495.32,0.00016995,2]
[366465245,1750270232933,-301.84,0.00016995,2]
[366465246,1750270232943,-506.14,0.00016995,2]
[366465247,1750270232953,-494.55,0.00016995,2]
[366465248,1750270232962,-301.31,0.00016995,2]
[366465249,1750270232972,-501.25,0.00016995,2]
[366465250,1750270232983,-502.34,0.00016997,2]
[366465251,1750270232993,-500.3,0.00016997,2]
[366465252,1750270233004,-301.33,0.00016997,2]
[366465253,1750270233013,-508.23,0.00016997,2]
[366465254,1750270233023,-501.07,0.00016997,2]
[366465255,1750270233033,-302.0,0.00016997,2]
[366465256,1750270233043,-503.81,0.00016997,2]
[366465257,1750270233054,-508.83,0.00016997,2]
[366465258,1750270233063,-300.27,0.00016997,2]
[366465259,1750270233075,-508.17,0.00016997,2]
[366465260,1750270233085,-492.81,0.00016997,2]
[366465261,1750270233095,-301.88,0.00016998,2]
[366465262,1750270233106,-499.44,0.00016998,2]
[366465263,1750270233117,-498.21,0.00016998,2]
[366465264,1750270233127,-303.58,0.00016998,2]
[366465265,1750270233142,-500.75,0.00016998,2]
[366465266,1750270233153,-505.37,0.00016998,2]
[366465267,1750270233165,-301.42,0.00016998,2]
[366465268,1750270233175,-509.24,0.00016998,2]
[366465269,1750270233185,-493.73,0.00016998,2]
[366465270,1750270233195,-305.4,0.00016998,2]
[366465271,1750270233205,-495.35,0.00016998,2]
[366465272,1750270233217,-305.32,0.00016998,2]
[366465273,1750270233227,-300.0,0.00016998,2]
[366465274,1750270233238,-501.86,0.00016999,2]
[366465275,1750270233248,-301.76,0.00016999,2]
[366465276,1750270233258,-499.42,0.00016999,2]
[366465277,1750270233268,-502.82,0.00016999,2]
[366465278,1750270233279,-497.04,0.00017004,2]
[366465279,1750270233290,-304.12,0.00017004,2]
[366465280,1750270233300,-496.4,0.00017004,2]
[366465281,1750270233311,-300.55,0.00017004,2]
[366465282,1750270233321,-491.94,0.00017004,2]
[366465283,1750270233332,-507.43,0.00017004,2]
[366465284,1750270233341,-305.37,0.00017004,2]
[366465285,1750270233351,-493.78,0.00017004,2]
[366465286,1750270233362,-496.28,0.00017004,2]
[366465287,1750270233372,-302.0,0.00017004,2]
[366465288,1750270233386,-500.0,0.00017084,2]
[366465289,1750270233395,-1000.0,0.00017145,2]
[366465290,1750270233406,-1367.34,0.00017209,2]
[366465291,1750270233418,-401.21,0.00017226,2]
[366465292,1750270233428,-313.28,0.00017276,2]
[366465293,1750270233439,-152.25590016,0.00017373,2]
[366465294,1750270233450,-151.0,0.00017373,2]
[366465295,1750270233460,-300.0,0.00017373,2]
[366465296,1750270233470,-300.0,0.00017373,2]
[366465297,1750270233481,-300.0,0.00017373,2]
[366465298,1750270233491,-416.16347923,0.00017373,2]
[366465299,1750270233501,-151.0,0.00017373,2]
[366465300,1750270233511,-1957.856,0.00017373,2]
[366465301,1750270233522,-421.54476453,0.00017373,2]
[366465302,1750270233532,-207.4,0.00017373,2]
[366465303,1750270233542,-2030.296672,0.00017428,2]
[366465304,1750270233553,-200.0,0.00017479,2]
[366465305,1750270233566,-2105.41764886,0.00017483,2]
[366465306,1750270233577,-2183.31810187,0.00017538,2]
[366465307,1750270233587,-833.92080167,0.00017545,2]
[366465308,1750270233597,-1020.12674319,0.0001759,2]
[366465309,1750270233609,-1044.63563405,0.00017593,2]
[366465310,1750270233619,-420.0,0.00017608,2]
[366465311,1750270233634,-500.0,0.0001791,2]
[366465312,1750270233645,-201.0,0.00017926,5]
[366465313,1750270233656,-156.0,0.0001822,2]
[366465314,1750270233666,-1020.12674319,0.00018279,2]
[366465315,1750270233677,-500.0,0.00018552,2]
[366465316,1750270233688,-500.0,0.00018552,2]
[366465317,1750270233698,-500.0,0.00018552,2]
[366465318,1750270233709,-500.0,0.00018552,2]
[366465319,1750270233719,-500.0,0.00018552,2]
[366465320,1750270233729,-500.0,0.00018552,2]
[366465321,1750270233739,-500.0,0.00018552,2]
[366465322,1750270233749,-500.0,0.00018552,2]
[366465323,1750270233760,-500.0,0.00018552,2]
[366465324,1750270233770,-158.38082385,0.00018552,2]
[366465325,1750270234086,-500.0,0.00018552,2]
[366465326,1750270234101,-150.36972246,0.00018552,2]
[366465327,1750270234111,-374.85420125,0.00018552,2]
[366465328,1750270234122,-500.0,0.00018552,2]
[366465329,1750270234135,-407.85654011,0.00018552,2]
[366465330,1750270234146,-556.01810406,0.00018552,2]
[366465331,1750270234157,-150.0,0.00018552,2]
[366465332,1750270234167,-250.0,0.00018552,2]
[366465333,1750270234177,-23900.0,0.00018553,2]
[366465334,1750270234188,-415.03,0.00018624,2]
[366465335,1750270234198,-300.0,0.00018698,2]
[366465336,1750270234209,-250.0,0.00018698,2]
[366465337,1750270234219,-156.587,0.00018742,2]
[366465338,1750270234229,-215.0738,0.00018742,2]
[366465339,1750270234239,-201.0,0.00018861,6]
[366465340,1750270234249,-741.03047,0.000189,2]
[366465341,1750270234259,-166.64,0.00018938,2]
[366465342,1750270234269,-1020.12674319,0.00018969,2]
[366465343,1750270234280,-160.33,0.0001905,2]
[366465344,1750270234289,-1000.0,0.0001905,2]
[366465345,1750270234300,-151.0,0.00019178,2]
[366465346,1750270234309,-171.13,0.00019178,2]
[366465347,1750270234319,-2000.0,0.000192,2]
[366465348,1750270234330,-587.0,0.0001925,2]
[366465349,1750270234340,-313.28,0.00019436,2]
[366465350,1750270234350,-792.38907509,0.00019549,2]
[366465351,1750270234360,-524.178412,0.00019577,2]
[366465352,1750270234371,-168.0,0.00019641,2]
[366465353,1750270234382,-150.0,0.00019654,2]
[366465354,1750270234391,-1020.12674319,0.00019659,2]
[366465355,1750270234402,-150.0,0.00019667,2]
[366465356,1750270234412,-168.0,0.00019686,2]
[366465357,1750270234421,-200.0,0.000197,7]
[366465358,1750270234431,-150.0,0.00019704,2]
[366465359,1750270234445,-150.0,0.00019706,2]
[366465360,1750270234455,-150.0,0.00019711,2]
[366465361,1750270234464,-150.0,0.00019714,2]
[366465362,1750270234474,-150.0,0.00019715,2]
[366465363,1750270234483,-150.0,0.00019715,2]
[366465364,1750270234493,-300.0,0.00019717,2]
[366465365,1750270234502,-150.0,0.00019718,2]
[366465366,1750270234511,-150.0,0.00019722,2]
[366465367,1750270234521,-150.0,0.00019725,2]
[366465368,1750270234531,-156.587,0.00019726,2]
[366465369,1750270234540,-150.0,0.0001973,2]
[366465370,1750270234549,-150.0,0.00019732,2]
[366465371,1750270234560,-150.0,0.00019734,2]
[366465372,1750270234574,-150.0,0.00019734,2]
[366465373,1750270234583,-150.0,0.00019739,2]
[366465374,1750270234593,-150.0,0.0001974,2]
[366465375,1750270234602,-150.0,0.00019743,2]
[366465376,1750270234613,-150.0,0.00019746,2]
[366465377,1750270234623,-150.0,0.00019747,2]
[366465378,1750270234635,-150.0,0.00019749,2]
[366465379,1750270234651,-150.0,0.00019755,2]
[366465380,1750270234661,-150.0,0.00019755,2]
[366465381,1750270234670,-150.0,0.00019758,2]
[366465382,1750270234680,-150.0,0.00019761,2]
[366465383,1750270234689,-150.0,0.00019763,2]
[366465384,1750270234698,-150.0,0.00019765,2]
[366465385,1750270234708,-185.533,0.00019767,2]
[366465386,1750270234717,-2155.703,0.00019767,2]
[366465387,1750270234732,-150.0,0.00019767,2]
[366465388,1750270234741,-150.0,0.00019767,2]
[366465389,1750270234751,-150.0,0.0001977,2]
[366465390,1750270234760,-150.0,0.00019775,2]
[366465391,1750270234770,-150.0,0.00019775,2]
[366465392,1750270234779,-150.0,0.00019778,2]
[366465393,1750270234789,-1000.0,0.0001978,2]
[366465394,1750270234798,-150.0,0.0001979,2]
[366465395,1750270234807,-150.0,0.00019791,2]
[366465396,1750270234817,-201.0,0.00019796,8]
[366465397,1750270234826,-150.0,0.00019796,2]
[366465398,1750270234835,-500.0,0.000198,7]
[366465399,1750270234845,-2236.98343511,0.000198,2]
[366465400,1750270234854,-39999.99999938,0.000198,2]
[366465401,1750270234864,-150.0,0.00019805,2]
[366465402,1750270234873,-150.0,0.00019808,2]
[366465403,1750270234885,-150.0,0.00019812,2]
[366465404,1750270234895,-150.0,0.00019813,2]
[366465405,1750270234904,-150.0,0.00019813,2]
[366465406,1750270234914,-150.0,0.00019816,2]
[366465407,1750270234923,-150.0,0.00019819,2]
[366465408,1750270234933,-150.0,0.0001982,2]
[366465409,1750270234943,-150.0,0.0001982,2]
[366465410,1750270234952,-150.0,0.00019822,2]
[366465411,1750270234962,-150.0,0.00019826,2]
[366465412,1750270234972,-150.0,0.00019831,2]
[366465413,1750270234981,-150.0,0.00019832,2]
[366465414,1750270234991,-1000.0,0.00019834,2]
[366465415,1750270235000,-150.0,0.00019834,2]
[366465416,1750270235011,-150.0,0.00019835,2]
[366465417,1750270235023,-150.0,0.00019836,2]
[366465418,1750270235036,-168.0,0.00019837,2]
[366465419,1750270235045,-150.0,0.00019843,2]
[366465420,1750270235055,-150.0,0.00019847,2]
[366465421,1750270235064,-150.0,0.0001985,2]
[366465422,1750270235073,-150.0,0.00019851,2]
[366465423,1750270235083,-150.0,0.00019853,2]
[366465424,1750270235092,-150.0,0.00019854,2]
[366465425,1750270235101,-150.0,0.00019854,2]
[366465426,1750270235110,-168.0,0.00019854,2]
[366465427,1750270235120,-150.0,0.00019856,2]
[366465428,1750270235131,-150.0,0.00019857,2]
[366465429,1750270235140,-150.0,0.00019864,2]
[366465430,1750270235149,-150.0,0.0001987,2]
[366465431,1750270235159,-1000.0,0.00019871,2]
[366465432,1750270235168,-2500.0,0.00019871,2]
[366465433,1750270235177,-150.0,0.00019871,2]
[366465434,1750270235187,-150.0,0.00019872,2]
[366465435,1750270235197,-150.0,0.00019883,2]
[366465436,1750270235206,-150.0,0.00019883,2]
[366465437,1750270235216,-412.10241744,0.00019884,2]
[366465438,1750270235225,-1486.6057,0.00019885,2]
[366465439,1750270235235,-741.2952,0.00019885,2]
[366465440,1750270235244,-1000.0,0.00019886,2]
[366465441,1750270235254,-150.0,0.0001989,2]
[366465442,1750270235263,-186.157747,0.0001989,2]
[366465443,1750270235273,-150.0,0.00019893,2]
[366465444,1750270235283,-162.69437358,0.000199,2]
[366465445,1750270235293,-500.0,0.000199,2]
[366465446,1750270235303,-500.0,0.000199,2]
[366465447,1750270235312,-500.0,0.000199,2]
[366465448,1750270235321,-500.0,0.000199,2]
[366465449,1750270235331,-500.0,0.000199,2]
[366465450,1750270235340,-500.0,0.000199,2]
[366465451,1750270235349,-500.0,0.000199,2]
[366465452,1750270235358,-500.0,0.000199,2]
[366465453,1750270235367,-547.0,0.000199,2]
[366465454,1750270235377,-163.04746006,0.000199,2]
[366465455,1750270235389,-5000.0,0.000199,2]
[366465456,1750270235399,-2399.22407042,0.000199,2]
[366465457,1750270235409,-640.526,0.000199,2]
[366465458,1750270235420,-800.0,0.000199,7]
[366465459,1750270235429,-264.09,0.000199,2]
[366465460,1750270235438,-150.0,0.00019902,2]
[366465461,1750270235447,-150.0,0.00019906,2]
[366465462,1750270235457,-150.0,0.00019907,2]
[366465463,1750270235466,-150.0,0.00019908,2]
[366465464,1750270235476,-150.0,0.00019915,2]
[366465465,1750270235485,-150.0,0.00019916,2]
[366465466,1750270235494,-150.0,0.00019918,2]
[366465467,1750270235504,-192.60923101,0.00019921,2]
[366465468,1750270235513,-150.0,0.00019923,2]
[366465469,1750270235523,-150.0,0.00019926,2]
[366465470,1750270235532,-150.0,0.00019926,2]
[366465471,1750270235541,-150.0,0.00019929,2]
[366465472,1750270235551,-150.0,0.00019938,2]
[366465473,1750270235562,-150.0,0.00019939,2]
[366465474,1750270235573,-150.0,0.0001994,2]
[366465475,1750270235582,-150.0,0.00019945,2]
[366465476,1750270235593,-150.0,0.00019947,2]
[366465477,1750270235603,-150.0,0.0001995,2]
[366465478,1750270235612,-661.9691251,0.00019951,2]
[366465479,1750270235622,-150.0,0.00019951,2]
[366465480,1750270235633,-150.0,0.00019952,2]
[366465481,1750270235643,-150.0,0.00019953,2]
[366465482,1750270235653,-661.9691251,0.00019954,2]
[366465483,1750270235664,-1885.44413402,0.00019956,2]
[366465484,1750270235674,-150.0,0.00019956,2]
[366465485,1750270235683,-313.8477378,0.00019956,2]
[366465486,1750270235693,-150.0,0.00019957,2]
[366465487,1750270235701,-150.0,0.00019962,2]
[366465488,1750270235710,-313.8477378,0.00019963,2]
[366465489,1750270235719,-661.9691251,0.00019963,2]
[366465490,1750270235729,-150.0,0.00019964,2]
[366465491,1750270235738,-150.0,0.00019964,2]
[366465492,1750270235748,-150.0,0.00019968,2]
[366465493,1750270235758,-150.0,0.00019968,2]
[366465494,1750270235769,-400.0,0.0001997,2]
[366465495,1750270235778,-150.0,0.0001997,2]
[366465496,1750270235788,-150.0,0.0001997,2]
[366465497,1750270235797,-150.0,0.00019971,2]
[366465498,1750270235807,-457.6567763,0.00019971,2]
[366465499,1750270235817,-1259.440571,0.00019971,2]
[366465500,1750270235827,-1755.6348397,0.00019971,2]
[366465501,1750270235836,-25554.5532771,0.00019971,2]
[366465502,1750270235846,-1422.8465882,0.00019971,2]
[366465503,1750270235856,-5319.2851251,0.00019971,2]
[366465504,1750270235866,-35821.1919076,0.00019971,2]
[366465505,1750270235876,-5589.5442259,0.00019971,2]
[366465506,1750270235889,-150.0,0.00019973,2]
[366465507,1750270235899,-150.0,0.00019975,2]
[366465508,1750270235910,-1001.6933,0.00019976,2]
[366465509,1750270235920,-200.0,0.00019978,2]
[366465510,1750270235929,-42432.20894059,0.00019985,2]
[366465511,1750270236374,-9135.99516943,0.00019985,2]
[366465654,1750270239307,-150.0,0.0001973,2]